[Event "VIII Iberoamericano Mexico 2022"]
[Site "Mexico City"]
[Date "2022.02.17"]
[Round "6.19"]
[White "Noboa Silva, Kevin"]
[Black "Avila Bautista, Roberto Al"]
[Result "1-0"]
[ECO "B27"]
[WhiteElo "2331"]
[BlackElo "2090"]
[Annotator "NA"]
[PlyCount "125"]
[EventDate "2022.02.12"]
[EventType "swiss"]
[EventCountry "MEX"]
[SourceTitle "playchess.com"]
[Source "ChessBase"]
[SourceQuality "1"]
[TimeControl "5400+30"]

1. e4 {[%emt 0:00:05]} c5 {[%emt 0:01:53]} 2. Nf3 {[%emt 0:00:13]} g6 {[%emt 0:00:29]} 3. c3 {[%emt 0:00:43]} d5 {[%emt 0:00:23]} 4. e5 {[%emt 0:00:31]} Bg7 {[%emt 0:02:33]} 5. d4 {[%emt 0:00:34]} cxd4 {[%emt 0:01:31]} 6. cxd4 {[%emt 0:00:25]} Nh6 {[%emt 0:01:40]} 7. Bf4 {[%emt 0:03:55]} f6 {[%emt 0:08:18]} 8. Bb5+ {[%emt 0:02:47]} Bd7 {[%emt 0:04:13]} 9. Qb3 {[%emt 0:02:20]} Bxb5 {[%emt 0:16:35]} 10. Qxb5+ {[%emt 0:00:15]} Qd7 {[%emt 0:01:03]} 11. Nc3 {[%emt 0:01:10]} Qxb5 {[%emt 0:06:54]} 12. Nxb5 {[%emt 0:00:13]} Na6 {[%emt 0:01:46]} 13. O-O {[%emt 0:09:51]} g5 {[%emt 0:16:30]} 14. exf6 {[%emt 0:06:58]} exf6 {[%emt 0:01:26]} 15. Bd2 {[%emt 0:14:08]} Kd7 {[%emt 0:00:55]} 16. Rac1 {[%emt 0:03:38]} Nf7 {[%emt 0:02:10]} 17. Ne1 {[%emt 0:10:08]} Nd6 {[%emt 0:04:12]} 18. Nxd6 {[%emt 0:00:44]} Kxd6 {[%emt 0:00:03]} 19. Nc2 {[%emt 0:00:30]} Rhf8 {[%emt 0:02:08]} 20. Rfe1 {[%emt 0:07:53]} h6 {[%emt 0:05:54]} 21. Nb4 {[%emt 0:01:45]} Rfe8 {[%emt 0:02:07]} 22. Nxa6 {[%emt 0:01:39]} bxa6 {[%emt 0:00:37]} 23. Rc5 {[%emt 0:03:14]} Rxe1+ {[%emt 0:01:57]} 24. Bxe1 {[%emt 0:00:01]} Rb8 {[%emt 0:00:57]} 25. Ra5 {[%emt 0:01:22]} Rb6 {[%emt 0:02:11]} 26. a3 {[%emt 0:03:10]} f5 {[%emt 0:00:36]} 27. Bb4+ {[%emt 0:00:17]} Ke6 {[%emt 0:02:05]} 28. Bc5 {[%emt 0:00:06]} Rxb2 {[%emt 0:03:11]} 29. Rxa6+ {[%emt 0:00:04]} Kf7 {[%emt 0:00:09]} 30. Rxa7+ {[%emt 0:00:13]} Kg6 {[%emt 0:00:06]} 31. g3 {[%emt 0:04:19]} Rd2 {[%emt 0:00:43]} 32. Ra4 {[%emt 0:01:05]} f4 {[%emt 0:00:47]} 33. g4 {[%emt 0:03:33]} h5 {[%emt 0:01:03]} 34. Ra6+ {[%emt 0:02:46]} Kh7 {[%emt 0:00:14]} 35. gxh5 {[%emt 0:01:45]} Bxd4 {[%emt 0:00:44]} 36. Bxd4 {[%emt 0:00:04]} Rxd4 {[%emt 0:00:08]} 37. Kg2 {[%emt 0:00:44]} Rd3 {[%emt 0:02:23]} 38. a4 {[%emt 0:00:23]} Ra3 {[%emt 0:00:43]} 39. f3 {[%emt 0:03:51]} d4 {[%emt 0:01:07]} 40. Kh3 {[%emt 0:01:52]} Rxf3+ {[%emt 0:00:27]} 41. Kg4 {[%emt 0:00:02]} Rf2 {[%emt 0:00:43]} 42. Kxg5 {[%emt 0:00:12]} Rxh2 {[%emt 0:01:27]} 43. Kxf4 {[%emt 0:01:58]} Rxh5 {[%emt 0:00:13]} 44. Ke4 {[%emt 0:00:31]} Kg7 {[%emt 0:00:24]} 45. a5 {[%emt 0:00:23]} Kf7 {[%emt 0:01:36]} 46. Ra8 {[%emt 0:00:11]} d3 {[%emt 0:01:19]} 47. Kxd3 {[%emt 0:00:10]} Rh4 {[%emt 0:00:36]} 48. Kc3 {[%emt 0:01:08]} Ra4 {[%emt 0:01:04]} 49. Kb3 {[%emt 0:00:06]} Ra1 {[%emt 0:00:25]} 50. a6 {[%emt 0:00:41]} Rb1+ {[%emt 0:01:53]} 51. Kc4 {[%emt 0:00:07]} Rc1+ {[%emt 0:00:48]} 52. Kd5 {[%emt 0:00:33]} Rd1+ {[%emt 0:00:47]} 53. Kc6 {[%emt 0:00:11]} Rc1+ {[%emt 0:00:46]} 54. Kb7 {[%emt 0:00:09]} Rb1+ {[%emt 0:00:22]} 55. Ka7 {[%emt 0:00:22]} Ke7 {[%emt 0:00:34]} 56. Rb8 {[%emt 0:00:06]} Ra1 {[%emt 0:00:18]} 57. Rb6 {[%emt 0:00:18]} Kd7 {[%emt 0:02:10]} 58. Kb7 {[%emt 0:00:23]} Rc1 {[%emt 0:00:40]} 59. a7 {[%emt 0:00:14]} Rc7+ {[%emt 0:00:32]} 60. Ka6 {[%emt 0:00:11]} Rc8 {[%emt 0:00:26]} 61. Rb8 {[%emt 0:00:17]} Rc1 {[%emt 0:00:35]} 62. a8=Q {[%emt 0:14:03]} Ra1+ {[%emt 0:00:29]} 63. Kb5 {[%emt 0:00:00]} 1-0

[Event "VIII Iberoamericano Mexico 2022"]
[Site "Mexico City"]
[Date "2022.02.17"]
[Round "6.20"]
[White "Leon Valdes, Jony Wilson"]
[Black "Luna Javier, Edgar Froylan"]
[Result "1-0"]
[ECO "A65"]
[WhiteElo "2392"]
[BlackElo "2148"]
[Annotator "NA"]
[PlyCount "55"]
[EventDate "2022.02.12"]
[EventType "swiss"]
[EventCountry "MEX"]
[SourceTitle "playchess.com"]
[Source "ChessBase"]
[SourceQuality "1"]
[TimeControl "5400+30"]

1. d4 {[%emt 0:00:00]} Nf6 {[%emt 0:10:43]} 2. c4 {[%emt 0:00:07]} g6 {[%emt 0:00:33]} 3. f3 {[%emt 0:00:07]} Bg7 {[%emt 0:01:17]} 4. e4 {[%emt 0:00:07]} O-O {[%emt 0:00:33]} 5. Nc3 {[%emt 0:00:10]} d6 {[%emt 0:02:40]} 6. Nge2 {[%emt 0:00:10]} c5 {[%emt 0:00:34]} 7. d5 {[%emt 0:00:06]} e6 {[%emt 0:00:18]} 8. Ng3 {[%emt 0:00:06]} exd5 {[%emt 0:00:31]} 9. cxd5 {[%emt 0:00:06]} a6 {[%emt 0:00:08]} 10. a4 {[%emt 0:00:04]} Nbd7 {[%emt 0:00:34]} 11. Be2 {[%emt 0:00:07]} Ne8 {[%emt 0:01:19]} 12. O-O {[%emt 0:00:18]} Rb8 {[%emt 0:01:02]} 13. f4 {[%emt 0:00:41]} Nc7 {[%emt 0:01:42]} 14. e5 {[%emt 0:02:04]} dxe5 {[%emt 0:00:46]} 15. f5 {[%emt 0:01:28]} b5 {[%emt 0:07:44]} 16. d6 {[%emt 0:05:48]} Ne8 {[%emt 0:00:22]} 17. axb5 {[%emt 0:00:36]} axb5 {[%emt 0:00:06]} 18. Bxb5 {[%emt 0:10:05]} Ndf6 {[%emt 0:15:48]} 19. fxg6 {[%emt 0:05:16]} hxg6 {[%emt 0:17:31]} 20. Bxe8 {[%emt 0:03:35]} Nxe8 {[%emt 0:01:53]} 21. Nge4 {[%emt 0:00:24]} Bf5 {[%emt 0:13:05]} 22. Bg5 {[%emt 0:11:47]} f6 {[%emt 0:00:12]} 23. Qd5+ {[%emt 0:00:26]} Kh8 {[%emt 0:05:38]} 24. Be3 {[%emt 0:03:14]} Bxe4 {[%emt 0:06:19]} 25. Nxe4 {[%emt 0:03:02]} f5 {[%emt 0:11:42]} 26. Rf3 {[%emt 0:00:50]} f4 {[%emt 0:00:00]} 27. Rh3+ {[%emt 0:00:41]} Bh6 {[%emt 0:00:00]} 28. Ra7 {[%emt 0:00:58]} 1-0

[Event "VIII Iberoamericano Mexico 2022"]
[Site "Mexico City"]
[Date "2022.02.17"]
[Round "6.21"]
[White "Perez Gormaz, Matias"]
[Black "Davalos Prieto, Abel Justo"]
[Result "1-0"]
[ECO "B53"]
[WhiteElo "2404"]
[BlackElo "2103"]
[Annotator "NA"]
[PlyCount "121"]
[EventDate "2022.02.12"]
[EventType "swiss"]
[EventCountry "MEX"]
[SourceTitle "playchess.com"]
[Source "ChessBase"]
[SourceQuality "1"]
[TimeControl "5400+30"]

1. e4 {[%emt 0:00:04]} c5 {[%emt 0:00:31]} 2. Nf3 {[%emt 0:00:11]} d6 {[%emt 0:00:34]} 3. d4 cxd4 {[%emt 0:00:18]} 4. Qxd4 {[%emt 0:05:08]} Nc6 {[%emt 0:00:19]} 5. Bb5 {[%emt 0:00:07]} Bd7 {[%emt 0:00:45]} 6. Bxc6 Bxc6 {[%emt 0:02:08]} 7. Nc3 Nf6 {[%emt 0:02:35]} 8. Bg5 {[%emt 0:00:26]} e6 {[%emt 0:07:02]} 9. O-O-O {[%emt 0:00:19]} Be7 {[%emt 0:01:04]} 10. Rhe1 {[%emt 0:05:50]} O-O {[%emt 0:06:53]} 11. Qd2 {[%emt 0:00:36]} Qa5 {[%emt 0:05:28]} 12. Kb1 {[%emt 0:00:13]} Rfd8 {[%emt 0:01:35]} 13. Nd4 {[%emt 0:07:49]} Rac8 {[%emt 0:09:35]} 14. Nd5 {[%emt 0:08:18]} Qxd2 {[%emt 0:00:15]} 15. Nxe7+ {[%emt 0:00:08]} Kf8 {[%emt 0:00:10]} 16. Bxd2 {[%emt 0:00:14]} Kxe7 {[%emt 0:00:26]} 17. f3 {[%emt 0:00:08]} Kf8 {[%emt 0:14:04]} 18. Bb4 {[%emt 0:02:19]} Kg8 {[%emt 0:01:07]} 19. c4 {[%emt 0:43:45]} Ne8 {[%emt 0:16:11]} 20. b3 {[%emt 0:00:25]} g6 {[%emt 0:04:10]} 21. Kb2 {[%emt 0:00:32]} e5 {[%emt 0:08:12]} 22. Nc2 {[%emt 0:06:50]} f6 {[%emt 0:03:34]} 23. Rd2 {[%emt 0:00:09]} Kf7 {[%emt 0:00:23]} 24. Red1 {[%emt 0:00:06]} Ke6 {[%emt 0:00:12]} 25. Ne3 {[%emt 0:00:56]} b6 {[%emt 0:00:56]} 26. g4 {[%emt 0:00:30]} Rd7 {[%emt 0:01:11]} 27. a4 {[%emt 0:00:44]} a5 {[%emt 0:00:22]} 28. Ba3 {[%emt 0:04:02]} Rcd8 {[%emt 0:00:30]} 29. h4 {[%emt 0:00:05]} Nc7 {[%emt 0:00:30]} 30. Rh2 {[%emt 0:00:42]} Na6 {[%emt 0:00:32]} 31. h5 {[%emt 0:04:05]} Nc5 {[%emt 0:01:21]} 32. hxg6 {[%emt 0:00:04]} hxg6 {[%emt 0:00:09]} 33. Rh6 {[%emt 0:00:03]} Rg8 {[%emt 0:00:58]} 34. Ka2 {[%emt 0:03:00]} Rdg7 {[%emt 0:01:11]} 35. Rd2 {[%emt 0:00:37]} Ke7 {[%emt 0:00:59]} 36. Rd1 {[%emt 0:03:02]} Ke6 {[%emt 0:00:09]} 37. Ng2 {[%emt 0:00:17]} Ke7 {[%emt 0:01:13]} 38. Nh4 {[%emt 0:00:17]} Bd7 {[%emt 0:01:08]} 39. Bc1 {[%emt 0:00:08]} Be6 {[%emt 0:00:50]} 40. Be3 {[%emt 0:00:25]} g5 {[%emt 0:05:07]} 41. Ng2 {[%emt 0:01:00]} Rg6 {[%emt 0:01:25]} 42. Rh2 {[%emt 0:00:12]} R6g7 {[%emt 0:00:17]} 43. Kb2 {[%emt 0:01:14]} Rd8 {[%emt 0:00:38]} 44. Rh6 {[%emt 0:00:12]} Kf7 {[%emt 0:00:44]} 45. Kc3 {[%emt 0:01:53]} Ke7 {[%emt 0:00:42]} 46. Bc1 {[%emt 0:02:14]} Rc8 {[%emt 0:00:18]} 47. Ne3 {[%emt 0:00:09]} Rd8 {[%emt 0:01:06]} 48. Nf1 {[%emt 0:00:41]} Kf7 {[%emt 0:00:30]} 49. Ng3 {[%emt 0:00:13]} Rg6 {[%emt 0:00:43]} 50. Rh2 {[%emt 0:00:16]} Rg7 {[%emt 0:00:19]} 51. Be3 {[%emt 0:00:08]} Ke7 {[%emt 0:01:40]} 52. Rh6 {[%emt 0:00:19]} Rf8 {[%emt 0:00:39]} 53. Nh5 {[%emt 0:01:37]} Rgg8 {[%emt 0:00:23]} 54. Rh1 {[%emt 0:01:06]} Rf7 {[%emt 0:00:14]} 55. Ng3 {[%emt 0:00:26]} Bd7 {[%emt 0:00:32]} 56. Rh8 {[%emt 0:01:29]} Rxh8 {[%emt 0:00:16]} 57. Rxh8 {[%emt 0:00:05]} Rf8 {[%emt 0:00:15]} 58. Rh7+ {[%emt 0:00:09]} Rf7 {[%emt 0:00:08]} 59. Rh6 {[%emt 0:00:06]} Be6 {[%emt 0:00:53]} 60. Nh5 {[%emt 0:00:15]} Rf8 {[%emt 0:00:42]} 61. Nxf6 {[%emt 0:04:42]} 1-0

[Event "VIII Iberoamericano Mexico 2022"]
[Site "Mexico City"]
[Date "2022.02.17"]
[Round "6.22"]
[White "Real Pereyra, Jeronimo"]
[Black "Diaz Rosas, Julio Cesar"]
[Result "1-0"]
[ECO "B51"]
[WhiteElo "2147"]
[BlackElo "2393"]
[Annotator "NA"]
[PlyCount "131"]
[EventDate "2022.02.12"]
[EventType "swiss"]
[EventCountry "MEX"]
[SourceTitle "playchess.com"]
[Source "ChessBase"]
[SourceQuality "1"]
[TimeControl "5400+30"]

1. e4 {[%emt 0:07:47]} c5 {[%emt 0:00:38]} 2. Nf3 {[%emt 0:00:22]} d6 {[%emt 0:00:05]} 3. Bb5+ {[%emt 0:00:04]} Nd7 {[%emt 0:00:05]} 4. d4 {[%emt 0:00:06]} cxd4 {[%emt 0:00:06]} 5. Qxd4 {[%emt 0:00:04]} a6 {[%emt 0:00:04]} 6. Be2 {[%emt 0:00:04]} Ngf6 {[%emt 0:07:56]} 7. O-O {[%emt 0:00:25]} Qc7 {[%emt 0:12:13]} 8. c4 {[%emt 0:01:52]} e6 {[%emt 0:01:09]} 9. Nc3 {[%emt 0:02:32]} Be7 {[%emt 0:00:09]} 10. b3 {[%emt 0:09:31]} O-O {[%emt 0:01:12]} 11. Bb2 {[%emt 0:01:03]} b6 {[%emt 0:01:42]} 12. Rfd1 {[%emt 0:11:08]} Bb7 {[%emt 0:01:23]} 13. Rac1 {[%emt 0:01:56]} Rfd8 {[%emt 0:00:56]} 14. Nd2 {[%emt 0:05:51]} Bf8 {[%emt 0:05:19]} 15. Nf1 {[%emt 0:02:38]} Rac8 {[%emt 0:06:41]} 16. Ng3 {[%emt 0:04:49]} Qb8 {[%emt 0:05:56]} 17. b4 {[%emt 0:03:43]} Qa8 {[%emt 0:10:12]} 18. a3 {[%emt 0:03:01]} Qb8 {[%emt 0:04:44]} 19. Kh1 {[%emt 0:06:51]} Ba8 {[%emt 0:01:14]} 20. f4 {[%emt 0:03:00]} Qb7 {[%emt 0:05:18]} 21. Qd3 {[%emt 0:03:26]} Qb8 {[%emt 0:07:06]} 22. Bf3 {[%emt 0:02:50]} Bb7 {[%emt 0:01:15]} 23. Nf1 {[%emt 0:05:43]} Qa8 {[%emt 0:04:40]} 24. Ng3 {[%emt 0:01:41]} Qb8 {[%emt 0:03:37]} 25. Nf1 {[%emt 0:04:48]} Be7 {[%emt 0:01:24]} 26. Qe2 {[%emt 0:01:32]} Nf8 {[%emt 0:00:58]} 27. f5 {[%emt 0:00:59]} exf5 {[%emt 0:01:25]} 28. exf5 {[%emt 0:00:25]} Re8 {[%emt 0:01:01]} 29. Ne3 {[%emt 0:01:50]} N8d7 {[%emt 0:03:55]} 30. Ncd5 {[%emt 0:03:57]} Nxd5 {[%emt 0:00:27]} 31. Bxd5 {[%emt 0:01:03]} Bf6 {[%emt 0:01:14]} 32. Bxf6 {[%emt 0:02:18]} Nxf6 {[%emt 0:00:06]} 33. Qf3 {[%emt 0:00:38]} Nxd5 {[%emt 0:02:58]} 34. Nxd5 {[%emt 0:01:34]} Re5 {[%emt 0:00:08]} 35. f6 {[%emt 0:00:55]} Bxd5 {[%emt 0:00:16]} 36. cxd5 {[%emt 0:00:36]} g6 {[%emt 0:03:11]} 37. Qf4 {[%emt 0:02:16]} Rxc1 {[%emt 0:01:33]} 38. Rxc1 {[%emt 0:00:17]} Qe8 {[%emt 0:02:17]} 39. h3 {[%emt 0:00:29]} g5 {[%emt 0:01:43]} 40. Qf2 {[%emt 0:03:33]} h6 {[%emt 0:02:33]} 41. Qxb6 {[%emt 0:02:09]} Re1+ {[%emt 0:00:38]} 42. Rxe1 {[%emt 0:00:04]} Qxe1+ {[%emt 0:00:04]} 43. Qg1 {[%emt 0:00:53]} Qc3 {[%emt 0:01:28]} 44. Qd1 {[%emt 0:01:08]} Qxf6 {[%emt 0:00:43]} 45. Qd3 {[%emt 0:00:26]} Qa1+ {[%emt 0:00:28]} 46. Kh2 {[%emt 0:00:02]} Qe5+ {[%emt 0:00:11]} 47. Kg1 {[%emt 0:00:23]} h5 {[%emt 0:00:50]} 48. Qb3 {[%emt 0:00:46]} Qd4+ {[%emt 0:00:38]} 49. Kf1 {[%emt 0:00:31]} Kg7 {[%emt 0:00:36]} 50. a4 {[%emt 0:00:06]} Kf6 {[%emt 0:00:14]} 51. b5 {[%emt 0:00:40]} axb5 {[%emt 0:00:02]} 52. axb5 {[%emt 0:00:10]} Qf4+ {[%emt 0:00:37]} 53. Ke2 {[%emt 0:00:23]} Qe4+ {[%emt 0:00:11]} 54. Kf2 {[%emt 0:00:24]} Qd4+ {[%emt 0:00:23]} 55. Kf1 {[%emt 0:00:16]} Qb6 {[%emt 0:00:37]} 56. Qc3+ {[%emt 0:00:19]} Kf5 {[%emt 0:01:08]} 57. Qc4 {[%emt 0:01:39]} Ke5 {[%emt 0:00:34]} 58. Ke2 {[%emt 0:00:31]} Qc5 {[%emt 0:00:31]} 59. Qxc5 {[%emt 0:00:34]} dxc5 {[%emt 0:00:02]} 60. b6 {[%emt 0:00:03]} Kd6 {[%emt 0:00:12]} 61. g4 {[%emt 0:00:02]} h4 {[%emt 0:00:33]} 62. Kd3 {[%emt 0:01:01]} Kd7 {[%emt 0:01:20]} 63. Kc4 {[%emt 0:00:36]} Kd6 {[%emt 0:00:37]} 64. Kb5 {[%emt 0:00:28]} Kd7 {[%emt 0:00:09]} 65. Kxc5 {[%emt 0:00:32]} f5 {[%emt 0:00:02]} 66. d6 {[%emt 0:00:06]} 1-0

[Event "VIII Iberoamericano Mexico 2022"]
[Site "Mexico City"]
[Date "2022.02.17"]
[Round "6.23"]
[White "Guevara Sanchez, Erick Marvin"]
[Black "Gemy, Jose Daniel"]
[Result "0-1"]
[ECO "C50"]
[WhiteElo "2145"]
[BlackElo "2381"]
[Annotator "NA"]
[PlyCount "62"]
[EventDate "2022.02.12"]
[EventType "swiss"]
[EventCountry "MEX"]
[SourceTitle "playchess.com"]
[Source "ChessBase"]
[SourceQuality "1"]
[TimeControl "5400+30"]

1. e4 {[%emt 0:00:30]} e5 {[%emt 0:00:48]} 2. Nf3 {[%emt 0:00:00]} Nc6 {[%emt 0:00:09]} 3. Bc4 {[%emt 0:00:07]} Bc5 {[%emt 0:00:04]} 4. O-O {[%emt 0:00:11]} Nf6 {[%emt 0:00:07]} 5. d4 {[%emt 0:00:09]} Bxd4 {[%emt 0:00:06]} 6. Nxd4 {[%emt 0:00:11]} Nxd4 {[%emt 0:00:04]} 7. Bg5 {[%emt 0:00:10]} Qe7 {[%emt 0:00:29]} 8. Kh1 {[%emt 0:05:23]} h6 9. Bxf6 {[%emt 0:03:18]} Qxf6 {[%emt 0:00:14]} 10. f4 {[%emt 0:10:26]} O-O {[%emt 0:00:49]} 11. c3 {[%emt 0:06:06]} Ne6 {[%emt 0:20:13]} 12. f5 {[%emt 0:07:18]} Ng5 {[%emt 0:01:02]} 13. Nd2 {[%emt 0:02:08]} b5 {[%emt 0:00:35]} 14. Bxb5 {[%emt 0:10:09]} Rb8 {[%emt 0:01:44]} 15. Bd3 {[%emt 0:05:43]} Rxb2 16. Nc4 {[%emt 0:04:02]} Rb8 {[%emt 0:02:40]} 17. Ne3 {[%emt 0:01:45]} Bb7 {[%emt 0:01:53]} 18. Qg4 {[%emt 0:10:12]} d5 {[%emt 0:20:39]} 19. exd5 {[%emt 0:01:56]} e4 {[%emt 0:01:01]} 20. Bc4 {[%emt 0:03:57]} Qxc3 {[%emt 0:13:06]} 21. f6 {[%emt 0:09:06]} Qxe3 {[%emt 0:02:53]} 22. h4 {[%emt 0:06:13]} Bc8 {[%emt 0:02:21]} 23. Qh5 {[%emt 0:00:12]} Nh7 {[%emt 0:08:14]} 24. fxg7 {[%emt 0:01:28]} Kxg7 {[%emt 0:00:17]} 25. d6 {[%emt 0:00:32]} f5 {[%emt 0:01:50]} 26. Qd1 {[%emt 0:03:45]} Nf6 {[%emt 0:04:23]} 27. dxc7 {[%emt 0:00:09]} Rb4 {[%emt 0:02:27]} 28. Rc1 {[%emt 0:02:15]} Qg3 {[%emt 0:00:18]} 29. Qd8 {[%emt 0:00:42]} Rxc4 {[%emt 0:00:31]} 30. Rxc4 {[%emt 0:01:10]} Ng4 {[%emt 0:00:08]} 31. Qd4+ {[%emt 0:00:34]} Rf6 {[%emt 0:00:32]} 0-1

[Event "VIII Iberoamericano Mexico 2022"]
[Site "Mexico City"]
[Date "2022.02.17"]
[Round "6.24"]
[White "Lopez Gonzalez, Abel Fabian"]
[Black "Martinez Morales, Geovanni"]
[Result "1-0"]
[ECO "D36"]
[WhiteElo "2379"]
[BlackElo "2098"]
[Annotator "NA"]
[PlyCount "73"]
[EventDate "2022.02.12"]
[EventType "swiss"]
[EventCountry "MEX"]
[SourceTitle "playchess.com"]
[Source "ChessBase"]
[SourceQuality "1"]
[TimeControl "5400+30"]

1. d4 {[%emt 0:00:03]} e6 {[%emt 0:02:07]} 2. c4 {[%emt 0:00:07]} d5 {[%emt 0:00:05]} 3. Nc3 {[%emt 0:00:05]} Nf6 {[%emt 0:00:09]} 4. cxd5 {[%emt 0:00:05]} exd5 {[%emt 0:00:08]} 5. Bg5 {[%emt 0:00:04]} Be7 {[%emt 0:01:03]} 6. e3 {[%emt 0:00:07]} h6 {[%emt 0:01:09]} 7. Bh4 {[%emt 0:00:11]} O-O {[%emt 0:00:07]} 8. Bd3 {[%emt 0:00:21]} c6 9. Qc2 {[%emt 0:02:50]} Nh5 {[%emt 0:08:26]} 10. Bxe7 {[%emt 0:04:45]} Qxe7 {[%emt 0:00:09]} 11. Nge2 {[%emt 0:00:34]} Nd7 {[%emt 0:03:42]} 12. g4 {[%emt 0:03:24]} Nhf6 {[%emt 0:00:12]} 13. Ng3 {[%emt 0:00:58]} Nb6 {[%emt 0:05:58]} 14. O-O-O {[%emt 0:10:22]} Bxg4 {[%emt 0:09:24]} 15. Rdg1 {[%emt 0:02:25]} Be6 {[%emt 0:09:27]} 16. Rg2 {[%emt 0:07:01]} Kh8 {[%emt 0:03:41]} 17. Rhg1 {[%emt 0:07:33]} c5 {[%emt 0:08:50]} 18. dxc5 {[%emt 0:14:08]} Qxc5 {[%emt 0:04:25]} 19. Nge2 {[%emt 0:00:07]} Rg8 {[%emt 0:01:24]} 20. Nd4 {[%emt 0:01:01]} Rac8 21. Kb1 {[%emt 0:06:57]} Nc4 {[%emt 0:06:22]} 22. Nce2 {[%emt 0:14:01]} Qb6 {[%emt 0:07:35]} 23. Bxc4 Rxc4 {[%emt 0:01:40]} 24. Qd3 {[%emt 0:07:21]} Qa6 {[%emt 0:08:43]} 25. Nf4 {[%emt 0:04:33]} Bd7 {[%emt 0:01:34]} 26. b3 {[%emt 0:12:28]} Rcc8 {[%emt 0:07:36]} 27. Qd2 {[%emt 0:00:17]} Ne4 {[%emt 0:00:59]} 28. Qb2 {[%emt 0:00:21]} Nf6 {[%emt 0:02:55]} 29. Ka1 {[%emt 0:01:02]} Qa5 {[%emt 0:01:19]} 30. Nde2 {[%emt 0:01:03]} Bf5 {[%emt 0:01:23]} 31. Rxg7 {[%emt 0:00:30]} Rxg7 {[%emt 0:05:28]} 32. Qxf6 {[%emt 0:01:46]} Rcg8 33. Nh5 {[%emt 0:00:30]} Qa6 {[%emt 0:01:00]} 34. Qd4 {[%emt 0:00:30]} f6 {[%emt 0:00:30]} 35. Nxg7 {[%emt 0:00:30]} Rxg7 36. Rxg7 Kxg7 37. Ng3 1-0

[Event "VIII Iberoamericano Mexico 2022"]
[Site "Mexico City"]
[Date "2022.02.17"]
[Round "6.25"]
[White "Vega Garcia, Jorge Arturo"]
[Black "Santos, Jose Guilherme B Lim"]
[Result "0-1"]
[ECO "D58"]
[WhiteElo "2121"]
[BlackElo "2363"]
[Annotator "NA"]
[PlyCount "88"]
[EventDate "2022.02.12"]
[EventType "swiss"]
[EventCountry "MEX"]
[SourceTitle "playchess.com"]
[Source "ChessBase"]
[SourceQuality "1"]
[TimeControl "5400+30"]

1. d4 {[%emt 0:09:01]} Nf6 {[%emt 0:00:03]} 2. Nf3 {[%emt 0:00:09]} e6 {[%emt 0:00:04]} 3. Bg5 d5 {[%emt 0:01:26]} 4. e3 {[%emt 0:01:28]} h6 {[%emt 0:00:21]} 5. Bh4 {[%emt 0:00:11]} Be7 {[%emt 0:00:12]} 6. c4 {[%emt 0:02:04]} O-O {[%emt 0:00:04]} 7. Nc3 {[%emt 0:00:10]} b6 {[%emt 0:00:02]} 8. Rc1 {[%emt 0:00:59]} Bb7 {[%emt 0:00:10]} 9. Bxf6 {[%emt 0:00:45]} Bxf6 {[%emt 0:00:07]} 10. cxd5 {[%emt 0:00:06]} exd5 {[%emt 0:00:03]} 11. Bd3 {[%emt 0:00:44]} c6 {[%emt 0:00:04]} 12. O-O {[%emt 0:00:11]} Re8 {[%emt 0:00:08]} 13. b4 {[%emt 0:06:11]} Qd6 {[%emt 0:16:24]} 14. Qb3 {[%emt 0:02:30]} Be7 {[%emt 0:03:15]} 15. Rb1 {[%emt 0:01:17]} Nd7 {[%emt 0:05:28]} 16. Rfc1 {[%emt 0:05:15]} Bf6 {[%emt 0:11:33]} 17. Na4 {[%emt 0:06:01]} g6 {[%emt 0:04:30]} 18. Nc5 {[%emt 0:09:41]} Bc8 {[%emt 0:00:22]} 19. Na6 {[%emt 0:00:15]} Re6 {[%emt 0:10:38]} 20. Rc2 {[%emt 0:05:47]} Be7 {[%emt 0:06:43]} 21. Rbc1 Bxa6 {[%emt 0:09:45]} 22. Bxa6 {[%emt 0:04:07]} c5 23. b5 {[%emt 0:19:39]} c4 {[%emt 0:02:27]} 24. Qc3 {[%emt 0:00:30]} Qc7 {[%emt 0:01:21]} 25. Nd2 {[%emt 0:00:53]} Nf6 {[%emt 0:02:44]} 26. Re1 {[%emt 0:01:14]} Bd6 {[%emt 0:00:13]} 27. h3 {[%emt 0:00:47]} Qe7 {[%emt 0:00:11]} 28. Rb1 {[%emt 0:00:29]} Re8 {[%emt 0:00:27]} 29. a4 {[%emt 0:01:43]} g5 {[%emt 0:00:31]} 30. Ra2 {[%emt 0:00:39]} g4 {[%emt 0:00:55]} 31. hxg4 {[%emt 0:00:17]} Nxg4 {[%emt 0:02:12]} 32. Nf1 {[%emt 0:00:19]} Qh4 {[%emt 0:00:17]} 33. g3 {[%emt 0:00:15]} Qe7 {[%emt 0:01:08]} 34. Qc2 {[%emt 0:01:17]} Rf6 {[%emt 0:00:34]} 35. Qd1 {[%emt 0:00:17]} h5 {[%emt 0:00:56]} 36. a5 {[%emt 0:00:25]} Rg6 {[%emt 0:00:37]} 37. axb6 {[%emt 0:00:26]} axb6 {[%emt 0:00:04]} 38. Qf3 {[%emt 0:00:10]} Rg5 {[%emt 0:00:41]} 39. Qh1 {[%emt 0:01:13]} Nf6 {[%emt 0:02:10]} 40. Qh3 {[%emt 0:00:37]} h4 {[%emt 0:00:34]} 41. Bc8 {[%emt 0:01:13]} hxg3 {[%emt 0:00:28]} 42. f4 {[%emt 0:00:22]} Rh5 {[%emt 0:08:09]} 43. Qxg3+ {[%emt 0:00:34]} Kh7 {[%emt 0:00:19]} 44. Ra8 {[%emt 0:01:46]} Qe4 {[%emt 0:01:28]} 0-1

[Event "VIII Iberoamericano Mexico 2022"]
[Site "Mexico City"]
[Date "2022.02.17"]
[Round "6.26"]
[White "Sanchez Enriquez, Oscar Gerardo"]
[Black "Rosales Campos, Paul"]
[Result "1/2-1/2"]
[ECO "D30"]
[WhiteElo "2305"]
[BlackElo "2039"]
[Annotator "NA"]
[PlyCount "70"]
[EventDate "2022.02.12"]
[EventType "swiss"]
[EventCountry "MEX"]
[SourceTitle "playchess.com"]
[Source "ChessBase"]
[SourceQuality "1"]
[TimeControl "5400+30"]

1. d4 {[%emt 0:19:34]} d5 {[%emt 0:00:39]} 2. Nf3 {[%emt 0:00:10]} e6 {[%emt 0:01:14]} 3. c4 {[%emt 0:00:45]} Nf6 {[%emt 0:00:51]} 4. e3 {[%emt 0:00:14]} a6 {[%emt 0:04:27]} 5. b3 {[%emt 0:00:57]} c5 {[%emt 0:07:25]} 6. Bd3 {[%emt 0:00:28]} Nc6 {[%emt 0:02:13]} 7. Bb2 {[%emt 0:00:19]} cxd4 {[%emt 0:03:49]} 8. exd4 {[%emt 0:03:55]} Bd6 {[%emt 0:01:02]} 9. O-O {[%emt 0:00:31]} O-O {[%emt 0:01:59]} 10. Nbd2 {[%emt 0:03:15]} b6 {[%emt 0:01:40]} 11. Qe2 {[%emt 0:00:29]} Bb7 {[%emt 0:02:55]} 12. Rad1 {[%emt 0:00:40]} Qc7 {[%emt 0:10:59]} 13. Ne5 {[%emt 0:01:23]} Rad8 {[%emt 0:10:40]} 14. f4 {[%emt 0:12:28]} Rfe8 {[%emt 0:08:32]} 15. Ndf3 {[%emt 0:02:59]} Ne4 {[%emt 0:03:47]} 16. Ng5 {[%emt 0:02:12]} Nxg5 {[%emt 0:17:41]} 17. fxg5 {[%emt 0:00:06]} Nxe5 {[%emt 0:00:31]} 18. dxe5 {[%emt 0:00:12]} Bc5+ {[%emt 0:00:58]} 19. Kh1 {[%emt 0:00:07]} dxc4 {[%emt 0:01:33]} 20. bxc4 {[%emt 0:00:37]} Qe7 {[%emt 0:04:14]} 21. Bc1 {[%emt 0:10:35]} Rd7 22. Be4 {[%emt 0:16:01]} Bxe4 {[%emt 0:06:30]} 23. Qxe4 {[%emt 0:00:47]} Red8 {[%emt 0:00:12]} 24. Qf3 {[%emt 0:01:14]} a5 {[%emt 0:01:12]} 25. a4 {[%emt 0:00:52]} g6 {[%emt 0:02:37]} 26. h4 {[%emt 0:00:34]} Rd4 {[%emt 0:00:11]} 27. g3 {[%emt 0:00:06]} Rxd1 {[%emt 0:00:40]} 28. Rxd1 {[%emt 0:00:14]} Rxd1+ {[%emt 0:00:04]} 29. Qxd1 {[%emt 0:00:17]} Qb7+ {[%emt 0:00:03]} 30. Kh2 {[%emt 0:00:06]} Qe4 {[%emt 0:00:13]} 31. Qd8+ {[%emt 0:01:00]} Kg7 {[%emt 0:00:06]} 32. Qf6+ {[%emt 0:00:09]} Kg8 {[%emt 0:00:26]} 33. Qd8+ {[%emt 0:00:08]} Kg7 {[%emt 0:00:10]} 34. Qf6+ {[%emt 0:00:07]} Kg8 {[%emt 0:00:07]} 35. Qd8+ {[%emt 0:00:06]} Kg7 {[%emt 0:01:38]} 1/2-1/2